Body,Body Name,Date,TransNo,Amount � (Excl VAT),Supplier name,Description,Expense Area,Expense Type,Expense Code,
http://opendatacommunities.org/id/london-borough-council/sutton,London Borough of Sutton,13/10/2022,10009542,5.74, ASDA SUPERSTORE,GRANGE GROCERIES,Health and Wellbeing,Equipment And Materials Purchase,A40000,
http://opendatacommunities.org/id/london-borough-council/sutton,London Borough of Sutton,12/10/2022,10009542,9.19, EBAY O 19-09206-59253,TOYS AND EQUIPMENT,Health and Wellbeing,Equipment And Materials Purchase,A40000,
http://opendatacommunities.org/id/london-borough-council/sutton,London Borough of Sutton,22/10/2022,10009542,9.99, TWINKL,TWINKL SUBSCRIPTION,Health and Wellbeing,Equipment And Materials Purchase,A40000,
http://opendatacommunities.org/id/london-borough-council/sutton,London Borough of Sutton,20/10/2022,10009542,5.80, POUNDLAND LTD 1211,TOYS AND EQUIPMENT,Health and Wellbeing,Equipment And Materials Purchase,A40000,
http://opendatacommunities.org/id/london-borough-council/sutton,London Borough of Sutton,16/10/2022,10009542,8.00, HOBBYCRAFT,TOYS AND EQUIPMENT,Health and Wellbeing,Equipment And Materials Purchase,A40000,
http://opendatacommunities.org/id/london-borough-council/sutton,London Borough of Sutton,15/10/2022,10009542,10.00, POUNDLAND,TOYS AND EQUIPMENT,Health and Wellbeing,Equipment And Materials Purchase,A40000,
http://opendatacommunities.org/id/london-borough-council/sutton,London Borough of Sutton,17/10/2022,10009542,55.08, TESCO STORES 5999,GRANGE GROCERIES,Health and Wellbeing,Provisions,A41006,
http://opendatacommunities.org/id/london-borough-council/sutton,London Borough of Sutton,20/10/2022,10009542,16.57, WM MORRISONS STORE,GRANGE GROCERIES,Health and Wellbeing,Provisions,A41006,
http://opendatacommunities.org/id/london-borough-council/sutton,London Borough of Sutton,24/10/2022,10009542,65.85, TESCO STORES 5999,GRANGE GROCERIES,Health and Wellbeing,Provisions,A41006,
http://opendatacommunities.org/id/london-borough-council/sutton,London Borough of Sutton,03/10/2022,10009542,63.08, TESCO STORES 5999,GRANGE GROCERIES,Health and Wellbeing,Provisions,A41006,
http://opendatacommunities.org/id/london-borough-council/sutton,London Borough of Sutton,30/09/2022,10009542,51.11, SAINSBURYS.CO.UK,SUTTON GROCERIES,Health and Wellbeing,Provisions,A41006,
http://opendatacommunities.org/id/london-borough-council/sutton,London Borough of Sutton,30/09/2022,10009542,-2.20, SAINSBURYS.CO.UK,GROCERY REFUND,Health and Wellbeing,Provisions,A41006,
http://opendatacommunities.org/id/london-borough-council/sutton,London Borough of Sutton,14/10/2022,10009542,34.22, SAINSBURYS.CO.UK,SUTTON GROCERIES,Health and Wellbeing,Provisions,A41006,
http://opendatacommunities.org/id/london-borough-council/sutton,London Borough of Sutton,25/10/2022,10009542,7.85, LIDL GB LONDON,GROCERIES,Health and Wellbeing,Free Milk,A41007,
http://opendatacommunities.org/id/london-borough-council/sutton,London Borough of Sutton,26/09/2022,10009542,82.16, AMZNMKTPLACE,TOYS AND EQUIPMENT,Health and Wellbeing,Equipment And Materials Purchase,A40000,
http://opendatacommunities.org/id/london-borough-council/sutton,London Borough of Sutton,30/09/2022,10009542,23.32, HTTPS://WWW.CAKESANDBA,FOREIGN EXCHANGE FREE,Health and Wellbeing,Transaction Charges,A44251,
http://opendatacommunities.org/id/london-borough-council/sutton,London Borough of Sutton,29/09/2022,10009542,113.08, HTTPS://WWW.CAKESANDBA,CAKE FOR LIBRARY SERVICE PLATFORM LAUNCH,Health and Wellbeing,Catering,A41000,
http://opendatacommunities.org/id/london-borough-council/sutton,London Borough of Sutton,29/09/2022,10009542,847.92, BC.BASECAMP 3 4831504,ANNUAL RENEWAL FOR BASECAMP - WEBSITE PROGRAMME FOR THE LIBRARIES CONSORTIUM AND CULTURAL IMPACT AWARD,Health and Wellbeing,ICT Software Development,A45041,
http://opendatacommunities.org/id/london-borough-council/sutton,London Borough of Sutton,27/09/2022,10009542,25.00, CILIP,CILIP TRAINING SESSION (ARCHIVES),Health and Wellbeing,Conference Expenses,A43075,
http://opendatacommunities.org/id/london-borough-council/sutton,London Borough of Sutton,04/10/2022,10009542,80.00, OCADO,CATERING FOR SERVICE AWAY DAY,Health and Wellbeing,Other Supplies & Services,A44291,
http://opendatacommunities.org/id/london-borough-council/sutton,London Borough of Sutton,28/09/2022,10009542,23.82, AMAZON.CO.UK YY63B0UM5,TABLE CLOTHS FOR OUTREACH EVENT,Health and Wellbeing,Other Supplies & Services,A44291,
http://opendatacommunities.org/id/london-borough-council/sutton,London Borough of Sutton,03/10/2022,10009542,8.32, SPOTIFY P1E2111A22,MUSIC FOR CEREMONIES,Health and Wellbeing,Subscriptions,A47010,
http://opendatacommunities.org/id/london-borough-council/sutton,London Borough of Sutton,28/09/2022,10009542,29.96, WM MORRISONS STORE,CAKE SALE & OPEN HOUSE EVENT FOR MACMILLAN,Health and Wellbeing,Miscellaneous Expenses,A49000,
http://opendatacommunities.org/id/london-borough-council/sutton,London Borough of Sutton,12/10/2022,10009542,752.63, TRAVELODGE,HOTEL ACCOMMODATION FOR 3 OFFICERS TO LGA CONFERENCE 2023,Resources,Conference Expenses,A43075,
http://opendatacommunities.org/id/london-borough-council/sutton,London Borough of Sutton,12/10/2022,10009542,198.33, HILTON,ACCOMMODATION BOOKING FOR THE SOLACE SUMMIT,Resources,Conference Expenses,A43075,
http://opendatacommunities.org/id/london-borough-council/sutton,London Borough of Sutton,08/10/2022,10009542,62.50, SOUNDCLOUD YEARLY PRO,SOUNDCLOUD SUBSCRIPTION - COMMITTEE AUDIO HOSTING,Resources,Equipment And Materials Purchase,A40000,
http://opendatacommunities.org/id/london-borough-council/sutton,London Borough of Sutton,19/10/2022,10009542,237.50, PREMIER INN,ACCOMMODATION FOR THREE OFFICERS TO ATTEND THE ADSO CONFERENCE,Resources,Stationery,A43015,
http://opendatacommunities.org/id/london-borough-council/sutton,London Borough of Sutton,26/10/2022,10009542,2.79, LUCIDCHART.COM/CHARGE,LUCIDCHART LICENSE,Resources,Registration & Licence Fees Payable,A44267,
http://opendatacommunities.org/id/london-borough-council/sutton,London Borough of Sutton,25/10/2022,10009542,101.57, LUCIDCHART.COM/CHARGE,LUCIDCHART LICENSE,Resources,Registration & Licence Fees Payable,A44267,
http://opendatacommunities.org/id/london-borough-council/sutton,London Borough of Sutton,12/10/2022,10009542,4.93, OPTIMAL WORKSHOP,DIGITAL RESEARCH COMMUNITY SOFTWARE,Resources,ICT Expenses,A45009,
http://opendatacommunities.org/id/london-borough-council/sutton,London Borough of Sutton,03/10/2022,10009542,180.00, AMAZON.CO.UK HL2RL0WK5,RBK ADULTS DIGITAL TEAM RESEARCH INCENTIVES,Resources,ICT Expenses,A45009,
http://opendatacommunities.org/id/london-borough-council/sutton,London Borough of Sutton,03/10/2022,10009542,120.00, AMAZON.CO.UK BZ9WO9M15,RBK HOUSING DIGITAL TEAM RESEARCH INCENTIVES,Resources,ICT Expenses,A45009,
http://opendatacommunities.org/id/london-borough-council/sutton,London Borough of Sutton,03/10/2022,10009542,30.00, AMAZON.CO.UK LK7KX4P15,RBK ADULTS DIGITAL TEAM RESEARCH INCENTIVES,Resources,ICT Expenses,A45009,
http://opendatacommunities.org/id/london-borough-council/sutton,London Borough of Sutton,10/10/2022,10009542,179.44, OPTIMAL WORKSHOP,DIGITAL RESEARCH COMMUNITY SOFTWARE,Resources,IT Software Maintenance,A45045,
http://opendatacommunities.org/id/london-borough-council/sutton,London Borough of Sutton,29/09/2022,10009542,255.00, ASSOCIATION OF CHARTER,Funding agreed with HR forREDACTED - PERSONAL DATA to complete the Cert PFM training,Resources,Training - Professional Qualification,A15024,
http://opendatacommunities.org/id/london-borough-council/sutton,London Borough of Sutton,25/10/2022,10009542,145.00, EB  ONLINE TRAINING PR,ONLINE TRAINING FOR REDACTED - PERSONAL DATA IN PROJECT MANAGEMENT TEAM,Resources,Staff Development And Training,A15022,
http://opendatacommunities.org/id/london-borough-council/sutton,London Borough of Sutton,21/10/2022,10009542,144.00, EB  ONLINE EFFECTIVE S,SOCIAL MEDIA TRAINING REDACTED - PERSONAL DATA,Resources,Staff Development And Training,A15022,
http://opendatacommunities.org/id/london-borough-council/sutton,London Borough of Sutton,28/09/2022,10009542,105.00, CIM,REDACTED - PERSONAL DATA APPRENTICESHIP,Resources,Training - Professional Qualification,A15024,
http://opendatacommunities.org/id/london-borough-council/sutton,London Borough of Sutton,04/10/2022,10009542,0.32, OTTER.AI,MONTHLY SUBCRIPTION,Resources,Publicity,A44266,
http://opendatacommunities.org/id/london-borough-council/sutton,London Borough of Sutton,03/10/2022,10009542,11.78, OTTER.AI,MONTHLY SUBSCRIPTION,Resources,Publicity,A44266,
http://opendatacommunities.org/id/london-borough-council/sutton,London Borough of Sutton,14/10/2022,10009542,500.65, MAILCHIMP,MAILCHIMP SUBSCRIPTION,Resources,Publicity,A44266,
http://opendatacommunities.org/id/london-borough-council/sutton,London Borough of Sutton,21/10/2022,10009542,322.86, MAILCHIMP,SUBSCRIPTION,Resources,Publicity,A44266,
http://opendatacommunities.org/id/london-borough-council/sutton,London Borough of Sutton,28/09/2022,10009542,-525.00, ARGOS LTD,CL&G,Resources,"Grants, Contributions & Donations",A47005,
http://opendatacommunities.org/id/london-borough-council/sutton,London Borough of Sutton,26/09/2022,10009542,210.00, ARGOS LTD,CL&G,Resources,"Grants, Contributions & Donations",A47005,
http://opendatacommunities.org/id/london-borough-council/sutton,London Borough of Sutton,26/09/2022,10009542,235.00, ARGOS LTD,CL&G,Resources,"Grants, Contributions & Donations",A47005,
http://opendatacommunities.org/id/london-borough-council/sutton,London Borough of Sutton,26/09/2022,10009542,235.00, ARGOS LTD,CL&G,Resources,"Grants, Contributions & Donations",A47005,
http://opendatacommunities.org/id/london-borough-council/sutton,London Borough of Sutton,09/10/2022,10009542,20.00, OYSTER BUS AUTOLOAD,CL&G,Resources,"Grants, Contributions & Donations",A47005,
http://opendatacommunities.org/id/london-borough-council/sutton,London Borough of Sutton,05/10/2022,10009542,350.00, ARGOS LTD,CL&G,Resources,"Grants, Contributions & Donations",A47005,
http://opendatacommunities.org/id/london-borough-council/sutton,London Borough of Sutton,30/09/2022,10009542,20.00, TFL OYSTER AUTO TOPUP,CL&G,Resources,"Grants, Contributions & Donations",A47005,
http://opendatacommunities.org/id/london-borough-council/sutton,London Borough of Sutton,30/09/2022,10009542,-235.00, ARGOS LTD,CL&G,Resources,"Grants, Contributions & Donations",A47005,
http://opendatacommunities.org/id/london-borough-council/sutton,London Borough of Sutton,28/09/2022,10009542,243.95, ARGOS LTD,CL&G,Resources,"Grants, Contributions & Donations",A47005,
http://opendatacommunities.org/id/london-borough-council/sutton,London Borough of Sutton,28/09/2022,10009542,460.00, ARGOS LTD,CL&G,Resources,"Grants, Contributions & Donations",A47005,
http://opendatacommunities.org/id/london-borough-council/sutton,London Borough of Sutton,28/09/2022,10009542,525.00, ARGOS LTD,CL&G,Resources,"Grants, Contributions & Donations",A47005,
http://opendatacommunities.org/id/london-borough-council/sutton,London Borough of Sutton,28/09/2022,10009542,243.95, ARGOS LTD,CL&G,Resources,"Grants, Contributions & Donations",A47005,
http://opendatacommunities.org/id/london-borough-council/sutton,London Borough of Sutton,21/10/2022,10009542,316.00, SRA,LAW SOCIETY RENEWAL FOR REDACTED - PERSONAL DATA,Resources,Staff Professional Membership Fees Non Payroll,A15025,
http://opendatacommunities.org/id/london-borough-council/sutton,London Borough of Sutton,16/10/2022,10009542,200.00, FACEBK C3EU8JFAL2,SUTTON TOWN CENTRE ENGAGEMENT ADVERTISING,Resources,Professional Fees,A44066,
http://opendatacommunities.org/id/london-borough-council/sutton,London Borough of Sutton,14/10/2022,10009542,200.00, FACEBK R59TCJXAL2,SUTTON TOWN CENTRE ENGAGEMENT ADVERTISING,Resources,Professional Fees,A44066,
http://opendatacommunities.org/id/london-borough-council/sutton,London Borough of Sutton,23/10/2022,10009542,53.50, FACEBK HGEFRKKAL2,ADVERTISMEMT,Resources,Professional Fees,A44066,
http://opendatacommunities.org/id/london-borough-council/sutton,London Borough of Sutton,13/10/2022,10009542,200.00, FACEBK RKPACJ7AL2,SUTTON TOWN CENTRE ENGAGEMENT ADVERTISING,Resources,Professional Fees,A44066,
http://opendatacommunities.org/id/london-borough-council/sutton,London Borough of Sutton,11/10/2022,10009542,180.54, FACEBK WGFK9JXAL2,SPLIT - SUTTON TOWN CENTRE ENGAGEMENT ADVERTISING (90.27%),Resources,Professional Fees,A44066,
http://opendatacommunities.org/id/london-borough-council/sutton,London Borough of Sutton,06/10/2022,10009542,93.55, FACEBK 2F3ZHJTAL2,SPLIT - SUTTON TOWN CENTRE ENGAGEMENT ADVERTISING (46.78%),Resources,Professional Fees,A44066,
http://opendatacommunities.org/id/london-borough-council/sutton,London Borough of Sutton,25/09/2022,10009542,-301.00, FRAUDULENT TRANSACTION REFUND,FRAUDULENT TRANSACTION REFUND,Resources,Contingency,A49001,
http://opendatacommunities.org/id/london-borough-council/sutton,London Borough of Sutton,21/10/2022,10009542,4.82, AMZNMKTPLACE,COAT HOOKS REQUIRED FOR SHOWER ROOMS AT CIVIC OFFICE,Resources,Contingency,A49001,
http://opendatacommunities.org/id/london-borough-council/sutton,London Borough of Sutton,18/10/2022,10009542,54.98, AMZNMKTPLACE AMAZON.CO,"FIRE SIGNAGE FOR THE LONDON CANCER HUB, INNOVATION GATEWAY AS REQUESTED BY CS",Resources,Contingency,A49001,
http://opendatacommunities.org/id/london-borough-council/sutton,London Borough of Sutton,18/10/2022,10009542,140.33, AMZNMKTPLACE,"VARIOUS ITEMS FOR THE LONDON CANCER HUB, INNOVATION GATEWAY AS REQUESTED BY CS",Resources,Contingency,A49001,
http://opendatacommunities.org/id/london-borough-council/sutton,London Borough of Sutton,17/10/2022,10009542,150.00, TWITTER ONLINE ADS,ADVERTISMEMT,Development Growth and Regeneration,Publicity,A44266,
http://opendatacommunities.org/id/london-borough-council/sutton,London Borough of Sutton,06/10/2022,10009542,106.45, FACEBK 2F3ZHJTAL2,SPLIT - SUTTON BUSINESS SESSIONS ADVERTISING (53.23%),Development Growth and Regeneration,Publicity,A44266,
http://opendatacommunities.org/id/london-borough-council/sutton,London Borough of Sutton,11/10/2022,10009542,19.46, FACEBK WGFK9JXAL2,SPLIT - SUTTON BUSINESS SESSIONS ADVERTISING (9.73%),Development Growth and Regeneration,Publicity,A44266,
http://opendatacommunities.org/id/london-borough-council/sutton,London Borough of Sutton,14/10/2022,10009542,10.00, TWITTER ONLINE ADS,TWITTER SUTTON BUSINESS SESSIONS ADVERTISING,Development Growth and Regeneration,Publicity,A44266,
http://opendatacommunities.org/id/london-borough-council/sutton,London Borough of Sutton,25/10/2022,10009542,105.00, AMZNMKTPLACE AMAZON.CO,WHF PRINT EQUIPMENT,Environment Housing and Neighbourhoods,Equipment And Materials Purchase,A40000,
http://opendatacommunities.org/id/london-borough-council/sutton,London Borough of Sutton,14/10/2022,10009542,707.46, INSTITUE OF DIRECTORS,BOOKING AN EVENT FOR A AWAYDAY - REDACTED - PERSONAL DATA,Development Growth and Regeneration,Hire of Rooms,A22010,
http://opendatacommunities.org/id/london-borough-council/sutton,London Borough of Sutton,20/10/2022,10009542,246.62, TRAVELODGE,EMERGENCY ACCOMMODATION PROVISION FOR HOMELESS HOUSEHOLD,Environment Housing and Neighbourhoods,Bed & Breakfast,A56000,
http://opendatacommunities.org/id/london-borough-council/sutton,London Borough of Sutton,20/10/2022,10009542,246.62, TRAVELODGE,EMERGENCY ACCOMMODATION PROVISION FOR HOMELESS HOUSEHOLD,Environment Housing and Neighbourhoods,Bed & Breakfast,A56000,
http://opendatacommunities.org/id/london-borough-council/sutton,London Borough of Sutton,18/10/2022,10009542,193.31, TRAVELODGE,EMERGENCY ACCOMMODATION PROVISION FOR HOMELESS HOUSEHOLD,Environment Housing and Neighbourhoods,Bed & Breakfast,A56000,
http://opendatacommunities.org/id/london-borough-council/sutton,London Borough of Sutton,14/10/2022,10009542,194.13, TRAVELODGE,EMERGENCY ACCOMMODATION PROVISION FOR HOMELESS HOUSEHOLD,Environment Housing and Neighbourhoods,Bed & Breakfast,A56000,
http://opendatacommunities.org/id/london-borough-council/sutton,London Borough of Sutton,26/09/2022,10009542,179.31, TRAVELODGE,EMERGENCY HOMELESSNESS PLACEMENT,Environment Housing and Neighbourhoods,Bed & Breakfast,A56000,
http://opendatacommunities.org/id/london-borough-council/sutton,London Borough of Sutton,21/10/2022,10009542,16.67, MEGABYTE COMPUTERS,PURCHASE OF 20M CAT6 CABLE FOR GOOGLE MEET MICROPHONE SO THAT IT CAN BE PLACED IN THE CENTRE OF THE ROOM FOR SSPB,Environment Housing and Neighbourhoods,Equipment And Materials Repairs & Maintenance,A40051,
http://opendatacommunities.org/id/london-borough-council/sutton,London Borough of Sutton,14/10/2022,10009542,20.83, B & Q 1191,PURCHASE OF STILLSONS TO ADJUST HEIGHT BARRIER AT CHEAM LIBRARY CAR PARK AFTER IT WAS HIT BY A VAN AND DROPPED BELOW ADVERTISED HEIGHT,Environment Housing and Neighbourhoods,Equipment And Materials Repairs & Maintenance,A40051,
http://opendatacommunities.org/id/london-borough-council/sutton,London Borough of Sutton,27/09/2022,10009542,23.33, ARGOS LTD,ITEMS NEEDED FOR A YOUNG PERSON - NEEDS TO BE CODED TO G03270,Peoples Services,Miscellaneous Expenses,A49000,
http://opendatacommunities.org/id/london-borough-council/sutton,London Borough of Sutton,19/10/2022,10009542,300.00, AMAZON.CO.UK UV7KW0GO5,VOUCHERS FOR YOUNG PEOPLE IN IYJS (100%),Peoples Services,Miscellaneous Expenses,A49000,
http://opendatacommunities.org/id/london-borough-council/sutton,London Borough of Sutton,19/10/2022,10009542,48.75, HOTEL AT BOOKING.COM,HOTEL STAY NEEDED,Peoples Services,Miscellaneous Expenses,A49000,
http://opendatacommunities.org/id/london-borough-council/sutton,London Borough of Sutton,28/09/2022,10009542,-12.50, ARGOS LTD,REFUND FROM A PREVIOUS ORDER NO LONGER NEEDED,Peoples Services,Miscellaneous Expenses,A49000,
http://opendatacommunities.org/id/london-borough-council/sutton,London Borough of Sutton,08/10/2022,10009542,-398.00, WWW.SCS.CO.UK,SCS REFUND,Peoples Services,Miscellaneous Expenses,A49000,
http://opendatacommunities.org/id/london-borough-council/sutton,London Borough of Sutton,13/10/2022,10009542,106.00, POST OFFICE COUNTER,PASSPORT PAYMENT FOR YOUNG PERSON,Peoples Services,Client Care/Assistance,A61011,
http://opendatacommunities.org/id/london-borough-council/sutton,London Borough of Sutton,21/10/2022,10009542,262.12, SP CARPET WAREHOUSE,CARPET NEEDED FOR YOUNG PERSON,Peoples Services,Set Up Costs - Children Leaving Care,A61021,
http://opendatacommunities.org/id/london-borough-council/sutton,London Borough of Sutton,26/09/2022,10009542,154.99, AMZNMKTPLACE,ITEMS REQUESTED BY THE SOCIAL WORKER (100%),Peoples Services,Set Up Costs - Children Leaving Care,A61021,
http://opendatacommunities.org/id/london-borough-council/sutton,London Borough of Sutton,06/10/2022,10009542,498.00, WWW.SCS.CO.UK,SOFA,Peoples Services,Set Up Costs - Children Leaving Care,A61021,
http://opendatacommunities.org/id/london-borough-council/sutton,London Borough of Sutton,28/09/2022,10009542,339.00, AMZNMKTPLACE,TV NEEDED FOR A YOUNG PERSON - 339.00 A61021 G03040 (100%),Peoples Services,Set Up Costs - Children Leaving Care,A61021,
http://opendatacommunities.org/id/london-borough-council/sutton,London Borough of Sutton,07/10/2022,10009542,269.99, AMZNMKTPLACE,"SPLIT - COOKOLOGY CFF170SL FREESTANDING FRIDGE FREEZER 170 LITRE (SILVER) ENERGY SAVING LED LIGHTS & ADJUSTABLE THERMOSTAT, 50CM WIDE, 141CM HIGH, REVERSIBLE DOOR HINGES (100%)",Peoples Services,Set Up Costs - Children Leaving Care,A61021,
http://opendatacommunities.org/id/london-borough-council/sutton,London Borough of Sutton,10/10/2022,10009542,239.00, AMZNMKTPLACE,"SPLIT - BETA MODERN SLIDING DOOR WARDROBE 2 COLOURS, 2 SIZES 120/150 CM WITH MIRROR - 2 DOORS MODERN STYLE (C: WHITE, 120 CM) (82.7%)",Peoples Services,Set Up Costs - Children Leaving Care,A61021,
http://opendatacommunities.org/id/london-borough-council/sutton,London Borough of Sutton,10/10/2022,10009542,49.99, AMZNMKTPLACE,BALANCING ENTRY AMOUNT (17.3%),Peoples Services,Set Up Costs - Children Leaving Care,A61021,
http://opendatacommunities.org/id/london-borough-council/sutton,London Borough of Sutton,06/10/2022,10009542,932.00, SUTTON APPLIANCES,SUTTON APPLIANCES,Peoples Services,Set Up Costs - Children Leaving Care,A61021,
http://opendatacommunities.org/id/london-borough-council/sutton,London Borough of Sutton,13/10/2022,10009542,89.63, TENPIN.CO.UK,ACTIVITY FOR CONTACT,Peoples Services,Miscellaneous Expenses,A49000,
http://opendatacommunities.org/id/london-borough-council/sutton,London Borough of Sutton,18/10/2022,10009542,35.98, AMZNMKTPLACE,ITEM NEEDED FOR A CLIENT (100%),Peoples Services,Miscellaneous Expenses,A49000,
http://opendatacommunities.org/id/london-borough-council/sutton,London Borough of Sutton,06/10/2022,10009542,11.48, KFC,EG ACTIVITY,Peoples Services,Miscellaneous Expenses,A49000,
http://opendatacommunities.org/id/london-borough-council/sutton,London Borough of Sutton,06/10/2022,10009542,-84.99, HOLIDAY INNS,HOLIDAY INN REFUND,Peoples Services,Approved Lodgings,A61000,
http://opendatacommunities.org/id/london-borough-council/sutton,London Borough of Sutton,11/10/2022,10009542,157.77, EASYJET,FLIGHTS NEEDED FOR SOCIAL WORKER,Peoples Services,C.C.A Travel & Subsistance,A61010,
http://opendatacommunities.org/id/london-borough-council/sutton,London Borough of Sutton,11/10/2022,10009542,55.42, HOTEL AT BOOKING.COM,HOTEL NEEDED FOR CLIENT,Peoples Services,C.C.A Travel & Subsistance,A61010,
http://opendatacommunities.org/id/london-borough-council/sutton,London Borough of Sutton,11/10/2022,10009542,18.20, WWW.WIGHTLINK.CO.UK,FERRY,Peoples Services,C.C.A Travel & Subsistance,A61010,
http://opendatacommunities.org/id/london-borough-council/sutton,London Borough of Sutton,20/10/2022,10009542,336.12, MINICABIT,CAB NEEDED FOR YOUNG PERSON TO ATTEND CONTACT,Peoples Services,C.C.A Travel & Subsistance,A61010,
http://opendatacommunities.org/id/london-borough-council/sutton,London Borough of Sutton,18/10/2022,10009542,31.68, CO-OP GROUP 070819,EG GROCERIES,Peoples Services,Miscellaneous Expenses,A49000,
http://opendatacommunities.org/id/london-borough-council/sutton,London Borough of Sutton,17/10/2022,10009542,111.25, IKEA LTD 144 CROYDON M,AK,Peoples Services,Miscellaneous Expenses,A49000,
http://opendatacommunities.org/id/london-borough-council/sutton,London Borough of Sutton,06/10/2022,10009542,28.50, ASDA SUPERSTORE,AK ESSENTIALS,Peoples Services,Miscellaneous Expenses,A49000,
http://opendatacommunities.org/id/london-borough-council/sutton,London Borough of Sutton,18/10/2022,10009542,4.58, AMZNMKTPLACE,ITEM FOR A YOUNG PERSON AT WILLOW RISE CHILDRENS HOME (100%),Peoples Services,Equipment And Materials Purchase,A40000,
http://opendatacommunities.org/id/london-borough-council/sutton,London Borough of Sutton,19/10/2022,10009542,8.98, AMZNMKTPLACE,ITEM FOR A YOUNG PERSON AT WILLOW RISE CHILDRENS HOME (100%),Peoples Services,Miscellaneous Expenses,A49000,
http://opendatacommunities.org/id/london-borough-council/sutton,London Borough of Sutton,18/10/2022,10009542,23.98, AMZNMKTPLACE,ITEM FOR A YOUNG PERSON AT WILLOW RISE CHILDRENS HOME (100%),Peoples Services,Miscellaneous Expenses,A49000,
http://opendatacommunities.org/id/london-borough-council/sutton,London Borough of Sutton,19/10/2022,10009542,12.82, AMZNBUSINESS 5V3PI0FN5,ITEM FOR A YOUNG PERSON AT WILLOW RISE CHILDRENS HOME (100%),Peoples Services,Miscellaneous Expenses,A49000,
http://opendatacommunities.org/id/london-borough-council/sutton,London Borough of Sutton,06/10/2022,10009542,39.08, ASDA GROCERIES ONLINE,A49000 G03070,Peoples Services,Miscellaneous Expenses,A49000,
http://opendatacommunities.org/id/london-borough-council/sutton,London Borough of Sutton,21/10/2022,10009542,20.41, HPI INSTANT INK UK,INK NEEDED FOR WILLOW RISE,Peoples Services,Miscellaneous Expenses,A49000,
http://opendatacommunities.org/id/london-borough-council/sutton,London Borough of Sutton,24/10/2022,10009542,129.00, AMZNMKTPLACE,REQUIRED FOR WILLOW RISE YOUNG PERSON (100%),Peoples Services,Miscellaneous Expenses,A49000,
http://opendatacommunities.org/id/london-borough-council/sutton,London Borough of Sutton,24/10/2022,10009542,6.82, AMZNMKTPLACE,ITEM FOR A YOUNG PERSON AT WILLOW RISE CHILDRENS HOME (100%),Peoples Services,Miscellaneous Expenses,A49000,
http://opendatacommunities.org/id/london-borough-council/sutton,London Borough of Sutton,22/10/2022,10009542,-65.83, IKEA LTD SHOP ONLINE,ITEMS NEEDED FOR YOUNG PERSON,Peoples Services,Miscellaneous Expenses,A49000,
http://opendatacommunities.org/id/london-borough-council/sutton,London Borough of Sutton,29/09/2022,10009542,35.00, AMZNMKTPLACE AMAZON.CO,"SPLIT - ADDIS 30 LITRE FAMILY DOME PEDAL KITCHEN WASTE TRASH BIN WITH INNER, STAINLESS STEEL FINISH MOB (100%)",Peoples Services,Miscellaneous Expenses,A49000,
http://opendatacommunities.org/id/london-borough-council/sutton,London Borough of Sutton,28/09/2022,10009542,12.67, AMZNMKTPLACE AMAZON.CO,SPLIT - WHAM 2 X HIPSTER LAUNDRY BASKET-SILVER (100%),Peoples Services,Miscellaneous Expenses,A49000,
http://opendatacommunities.org/id/london-borough-council/sutton,London Borough of Sutton,27/09/2022,10009542,35.00, AMZNMKTPLACE AMAZON.CO,SPLIT - TIDISER� BATHROOM SHELVES~ SELF-ADHESIVE SHOWER CADDY~ 3 TIER MULTI USE BATHROOM STORAGE~ SPACE SAVER PREMIUM QUALITY~ CHROME & BLACK ~ 26CM(L) X 10C (100%),Peoples Services,Miscellaneous Expenses,A49000,
http://opendatacommunities.org/id/london-borough-council/sutton,London Borough of Sutton,26/10/2022,10009542,15.60, AMZNMKTPLACE,ITEM FOR A YOUNG PERSON AT WILLOW RISE CHILDRENS HOME (100%),Peoples Services,Miscellaneous Expenses,A49000,
http://opendatacommunities.org/id/london-borough-council/sutton,London Borough of Sutton,25/10/2022,10009542,3.98, AMZNMKTPLACE,"SPLIT - VEYLIN HALLOWEEN CAUTION TAPES, HALLOWEEN DON OT ENTER TAPE, INFECTION ZONE TAPES AND KEEP OUT DANGER TAPE HALLOWEEN PROP FRIGHT TAPE OUTDOOR GARDEN D (100%)",Peoples Services,Miscellaneous Expenses,A49000,
http://opendatacommunities.org/id/london-borough-council/sutton,London Borough of Sutton,25/10/2022,10009542,3.99, AMZNMKTPLACE,ITEM FOR A YOUNG PERSON AT WILLOW RISE CHILDRENS HOME (100%),Peoples Services,Miscellaneous Expenses,A49000,
http://opendatacommunities.org/id/london-borough-council/sutton,London Borough of Sutton,25/10/2022,10009542,16.85, AMZNMKTPLACE,ITEM FOR A YOUNG PERSON AT WILLOW RISE CHILDRENS HOME (100%),Peoples Services,Miscellaneous Expenses,A49000,
http://opendatacommunities.org/id/london-borough-council/sutton,London Borough of Sutton,25/10/2022,10009542,11.40, AMZNMKTPLACE,ITEM FOR A YOUNG PERSON AT WILLOW RISE CHILDRENS HOME (100%),Peoples Services,Miscellaneous Expenses,A49000,
http://opendatacommunities.org/id/london-borough-council/sutton,London Borough of Sutton,25/10/2022,10009542,17.40, AMZNMKTPLACE,ITEM FOR A YOUNG PERSON AT WILLOW RISE CHILDRENS HOME (100%),Peoples Services,Miscellaneous Expenses,A49000,
http://opendatacommunities.org/id/london-borough-council/sutton,London Borough of Sutton,19/10/2022,10009542,26.98, EMPIRE CINEMAS,ACTIVITY FOR YOUNG PERSON AT WILLOW RISE,Peoples Services,Client Care/Assistance,A61011,
http://opendatacommunities.org/id/london-borough-council/sutton,London Borough of Sutton,19/10/2022,10009542,65.83, IKEA LTD SHOP ONLINE,ITEM NEEDED FOR CLIENT,Peoples Services,Client Care/Assistance,A61011,
http://opendatacommunities.org/id/london-borough-council/sutton,London Borough of Sutton,19/10/2022,10009542,19.58, TULLEYS FARM,SUPERVISED CONTACT,Peoples Services,Client Care/Assistance,A61011,
http://opendatacommunities.org/id/london-borough-council/sutton,London Borough of Sutton,06/10/2022,10009542,-3.33, ASDA GROCERIES ONLINE,A61021 G03080,Peoples Services,Set Up Costs - Children Leaving Care,A61021,
http://opendatacommunities.org/id/london-borough-council/sutton,London Borough of Sutton,05/10/2022,10009542,-5.83, ARGOS LTD,A61021 G03080,Peoples Services,Set Up Costs - Children Leaving Care,A61021,
http://opendatacommunities.org/id/london-borough-council/sutton,London Borough of Sutton,30/09/2022,10009542,159.90, ZOOM.US 888-799-9666,SUBSCRIPTION REQUIRED FOR A TEAM,Peoples Services,Subscriptions,A47010,
http://opendatacommunities.org/id/london-borough-council/sutton,London Borough of Sutton,17/10/2022,10009542,159.90, ZOOM.US 888-799-9666,NEEDED FOR TEAM MEETINGS,Peoples Services,Subscriptions,A47010,
http://opendatacommunities.org/id/london-borough-council/sutton,London Borough of Sutton,17/10/2022,10009542,7.30, POUNDLAND LTD 1211,CHRISTMAS CARD PAYMENT FOR YOUNG PEOPLE,Peoples Services,Equipment And Materials Purchase,A40000,
http://opendatacommunities.org/id/london-borough-council/sutton,London Borough of Sutton,18/10/2022,10009542,18.33, SUTTON REGISTER OFFICE,BIRTH CERTS FOR LEGAL PURPOSES,Peoples Services,Equipment And Materials Purchase,A40000,
http://opendatacommunities.org/id/london-borough-council/sutton,London Borough of Sutton,28/09/2022,10009542,35.75, WANDSWORTH COUNCIL,BIRTH CERT,Peoples Services,Equipment And Materials Purchase,A40000,
http://opendatacommunities.org/id/london-borough-council/sutton,London Borough of Sutton,28/09/2022,10009542,11.00, SUTTON REGISTER OFFICE,BIRTH CERT,Peoples Services,Equipment And Materials Purchase,A40000,
http://opendatacommunities.org/id/london-borough-council/sutton,London Borough of Sutton,28/09/2022,10009542,64.99, AMZNBUSINESS VG02C26Y5,"SPLIT - EXTREME COMFORT COOLTOUCH ESSENTIALS WHITE 18CMS DEEP SPRING VALUE MATTRESS, 3FT SINGLE (3FT X 6FT3, 90CM X 190CM) (100%)",Peoples Services,Client Care/Assistance,A61011,
http://opendatacommunities.org/id/london-borough-council/sutton,London Borough of Sutton,12/10/2022,10009542,225.00, PREMIER INN,HOTEL NEEDED FOR CLIENT,Peoples Services,Client Care/Assistance,A61011,
http://opendatacommunities.org/id/london-borough-council/sutton,London Borough of Sutton,02/10/2022,10009542,184.58, JURYS INN NOTTINGHAM F,STAY NEEDED FOR A CLIENT IN A HOTEL,Peoples Services,Client Care/Assistance,A61011,
http://opendatacommunities.org/id/london-borough-council/sutton,London Borough of Sutton,19/10/2022,10009542,101.25, FUTUREGYMNASTICS,ACTIVITY FOR CHILDREN FOR HALF TERM,Peoples Services,Client Care/Assistance,A61011,
http://opendatacommunities.org/id/london-borough-council/sutton,London Borough of Sutton,19/10/2022,10009542,101.25, FUTUREGYMNASTICS,ACTIVITY FOR CHILDREN FOR HALF TERM,Peoples Services,Client Care/Assistance,A61011,
http://opendatacommunities.org/id/london-borough-council/sutton,London Borough of Sutton,19/10/2022,10009542,101.25, FUTUREGYMNASTICS,ACTIVITY FOR CHILDREN FOR HALF TERM,Peoples Services,Client Care/Assistance,A61011,
http://opendatacommunities.org/id/london-borough-council/sutton,London Borough of Sutton,19/10/2022,10009542,112.50, FUTUREGYMNASTICS,ACTIVITY FOR CHILDREN FOR HALF TERM,Peoples Services,Client Care/Assistance,A61011,
http://opendatacommunities.org/id/london-borough-council/sutton,London Borough of Sutton,20/10/2022,10009542,47.50, CAMP BEAUMONT DAY CARE,ACTIVITY FOR HALF TERM,Peoples Services,Client Care/Assistance,A61011,
http://opendatacommunities.org/id/london-borough-council/sutton,London Borough of Sutton,20/10/2022,10009542,47.50, CAMP BEAUMONT DAY CARE,ACTIVITY FOR HALF TERM,Peoples Services,Client Care/Assistance,A61011,
http://opendatacommunities.org/id/london-borough-council/sutton,London Borough of Sutton,20/10/2022,10009542,95.00, CAMP BEAUMONT DAY CARE,ACTIVITY FOR HALF TERM,Peoples Services,Client Care/Assistance,A61011,
http://opendatacommunities.org/id/london-borough-council/sutton,London Borough of Sutton,24/10/2022,10009542,793.00, TRAVELHOUSE,FLIGHTS,Peoples Services,C.C.A Travel & Subsistance,A61010,
http://opendatacommunities.org/id/london-borough-council/sutton,London Borough of Sutton,23/09/2022,10009542,"3,199.00", C2E830200823N UKVI,OVERSEAS TRANSACTION,Peoples Services,Client Care/Assistance,A61011,
http://opendatacommunities.org/id/london-borough-council/sutton,London Borough of Sutton,27/09/2022,10009542,847.28, ARGOS LTD,ITEM FOR A YOUNG PERSON - NEEDS TO BE CODED TO G03270,Peoples Services,Miscellaneous Expenses,A49000,
http://opendatacommunities.org/id/london-borough-council/sutton,London Borough of Sutton,27/09/2022,10009542,22.00, SUTTON REGISTER OFFICE,DEATH CERTIFICATE,Peoples Services,Equipment And Materials Purchase,A40000,
http://opendatacommunities.org/id/london-borough-council/sutton,London Borough of Sutton,27/09/2022,10009542,-11.00, SUTTON REGISTER OFFICE,DEATH CERTIFICATE REFUND,Peoples Services,Equipment And Materials Purchase,A40000,
http://opendatacommunities.org/id/london-borough-council/sutton,London Borough of Sutton,06/10/2022,10009542,40.00, EB  PRACTICE FORUM-PLA,EVENTBRITE TICKETS FOR AN ONLINE COURSE: PRACTICE FORUM - PLACING CHILDREN OVERSEAS: VIABILITY AND SUPPORT PLAN,Peoples Services,Equipment And Materials Purchase,A40000,
http://opendatacommunities.org/id/london-borough-council/sutton,London Borough of Sutton,25/10/2022,10009542,190.40, WWW.BIGYELLOW.CO.UK,SELF STORAGE,Peoples Services,C.C.A Travel & Subsistance,A61010,
http://opendatacommunities.org/id/london-borough-council/sutton,London Borough of Sutton,28/09/2022,10009542,172.15, WWW.BIGYELLOW.CO.UK,BIG YELLOW STORAGE,Peoples Services,Client Care/Assistance,A61011,
http://opendatacommunities.org/id/london-borough-council/sutton,London Borough of Sutton,30/09/2022,10009542,64.96, ARGOS LTD,ITEMS NEEDED FOR A CLIENT,Peoples Services,Client Care/Assistance,A61011,
http://opendatacommunities.org/id/london-borough-council/sutton,London Borough of Sutton,20/10/2022,10009542,"3,959.58", IKEA LTD SHOP ONLINE,FURNITURE FOR 10 SANDHILLS - KICKSTART FURNITURE PROJECT,Peoples Services,Furniture - Purchase,A40015,
http://opendatacommunities.org/id/london-borough-council/sutton,London Borough of Sutton,26/09/2022,10009542,-12.50, IKEA LTD SHOP ONLINE,REFUND FOR AN ITEM A49000 G03270,Peoples Services,Miscellaneous Expenses,A49000,
http://opendatacommunities.org/id/london-borough-council/sutton,London Borough of Sutton,06/10/2022,10009542,425.91, CURRYS ONLINE,COOKER,Peoples Services,Miscellaneous Expenses,A49000,
http://opendatacommunities.org/id/london-borough-council/sutton,London Borough of Sutton,10/10/2022,10009542,-53.75, ARGOS LTD,REFUND FOR ARGOS,Peoples Services,Miscellaneous Expenses,A49000,
http://opendatacommunities.org/id/london-borough-council/sutton,London Borough of Sutton,11/10/2022,10009542,483.33, TASKER ON TASKRABBIT,IKEA SET UP FOR A NEW CHILDRENS HOME,Peoples Services,Set Up Costs - Children Leaving Care,A61021,
http://opendatacommunities.org/id/london-borough-council/sutton,London Borough of Sutton,07/10/2022,10009542,60.00, WWW.WIGHTLINK.CO.UK,FERRY TRAVEL FOR VISIT BY A SOCIAL WORKER,Peoples Services,C.C.A Travel & Subsistance,A61010,
http://opendatacommunities.org/id/london-borough-council/sutton,London Borough of Sutton,05/10/2022,10009542,"1,980.00", MAG EVENTS,CHILDREN & YOUNG PEOPLE NOW AWARDS 2022 - TABLE BOOKING FOR NAOMI DAWSON LSCP,Peoples Services,Staff Development And Training,A15022,
http://opendatacommunities.org/id/london-borough-council/sutton,London Borough of Sutton,27/09/2022,10009542,120.96, HOLIDAY INNS,ACCOMMODATION FOR LSCP CHAIR,Peoples Services,Consultancy Services - Other,A44065,
http://opendatacommunities.org/id/london-borough-council/sutton,London Borough of Sutton,27/09/2022,10009542,34.04, TESCO STORES 5999,ITEMS NEEDED FOR SUTTON FAMILY CENTRE,Peoples Services,Equipment And Materials Purchase,A40000,
http://opendatacommunities.org/id/london-borough-council/sutton,London Borough of Sutton,26/09/2022,10009542,21.66, AMZNMKTPLACE,"SPLIT - AMAZON BASICS AA ALKALINE BATTERIES, INDUSTRIAL DOUBLE A, 5-YEAR SHELF LIFE, 40-PACK (100%)",Peoples Services,Equipment And Materials Purchase,A40000,
http://opendatacommunities.org/id/london-borough-council/sutton,London Borough of Sutton,26/09/2022,10009542,25.96, AMZNMKTPLACE,ITEMS NEEDED FOR THE SUTTON FAMILY CENTRE SITE (48.13%),Peoples Services,Miscellaneous Expenses,A49000,
http://opendatacommunities.org/id/london-borough-council/sutton,London Borough of Sutton,26/09/2022,10009542,27.98, AMZNMKTPLACE,SPLIT - CLAIREFONTAINE EUROPA NOTEMAKER NOTEBOOK - A5-90GSM - 120 RULED PAGES - ASSORTED COLOURS - PACK OF 10 (51.87%),Peoples Services,Miscellaneous Expenses,A49000,
http://opendatacommunities.org/id/london-borough-council/sutton,London Borough of Sutton,26/09/2022,10009542,12.98, AMZNMKTPLACE,ITEMS NEEDED FOR SUTTON FAMILY CENTRE (100%),Peoples Services,Miscellaneous Expenses,A49000,
http://opendatacommunities.org/id/london-borough-council/sutton,London Borough of Sutton,26/09/2022,10009542,8.89, AMZNMKTPLACE,ITEMS FOR SFC (100%),Peoples Services,Miscellaneous Expenses,A49000,
http://opendatacommunities.org/id/london-borough-council/sutton,London Borough of Sutton,26/09/2022,10009542,11.88, AMZNMKTPLACE,ITEMS NEEDED FOR THE SUTTON FAMILY CENTRE SITE (100%),Peoples Services,Miscellaneous Expenses,A49000,
http://opendatacommunities.org/id/london-borough-council/sutton,London Borough of Sutton,26/09/2022,10009542,1.80, AMZNMKTPLACE,"SPLIT - SELLOTAPE SELLOTAC STICKY TACK FOR HOME & OFFICE, REUSABLE BLUE TACK ADHESIVE, STATIONERY, CRAFT & OFFICE SUPPLIES, POSTER PUTTY TO HANG PHOTOS, CARDS (100%)",Peoples Services,Miscellaneous Expenses,A49000,
http://opendatacommunities.org/id/london-borough-council/sutton,London Borough of Sutton,26/09/2022,10009542,27.96, AMZNMKTPLACE,ITEMS FOR SUTTON FAMILY CENTRE (100%),Peoples Services,Miscellaneous Expenses,A49000,
http://opendatacommunities.org/id/london-borough-council/sutton,London Borough of Sutton,21/10/2022,10009542,34.80, STK SHUTTERSTOCK,SHUTTERSTOCK PAYMENT,Peoples Services,Other Supplies & Services,A44291,
http://opendatacommunities.org/id/london-borough-council/sutton,London Borough of Sutton,21/10/2022,10009542,99.00, THE ROYAL HOTEL SKEGNE,HOTEL STAY,Peoples Services,C.C.A Travel & Subsistance,A61010,
http://opendatacommunities.org/id/london-borough-council/sutton,London Borough of Sutton,19/10/2022,10009542,278.32, CURRYS BUSINESS,ITEMS NEEDED FOR YOUNG PERSON,Peoples Services,Client Care/Assistance,A61011,
http://opendatacommunities.org/id/london-borough-council/sutton,London Borough of Sutton,14/10/2022,10009542,361.32, HOLIDAY INNS,HOTEL NEEDED FOR CLIENT,Peoples Services,Miscellaneous Expenses,A49000,
http://opendatacommunities.org/id/london-borough-council/sutton,London Borough of Sutton,14/10/2022,10009542,762.38, TRAVELODGE,HOTEL NEEDED FOR CLIENT,Peoples Services,Client Care/Assistance,A61011,
http://opendatacommunities.org/id/london-borough-council/sutton,London Borough of Sutton,20/10/2022,10009542,787.88, TRAVELODGE,HOTEL NEEDED FOR A CLIENT,Peoples Services,Client Care/Assistance,A61011,
http://opendatacommunities.org/id/london-borough-council/sutton,London Borough of Sutton,10/10/2022,10009542,7.10, UKVI 3JLN0033321266,FEEDS FOR OVERSEAS TRANSACTIONS,Peoples Services,Client Care/Assistance,A61011,
http://opendatacommunities.org/id/london-borough-council/sutton,London Borough of Sutton,07/10/2022,10009542,258.10, UKVI 3JLN0033321266,FEEDS FOR OVERSEAS TRANSACTION,Peoples Services,Client Care/Assistance,A61011,
http://opendatacommunities.org/id/london-borough-council/sutton,London Borough of Sutton,29/09/2022,10009542,10.32, AMZNMKTPLACE AMAZON.CO,BLACK HISTORY MONTH (100%),Peoples Services,Miscellaneous Expenses,A49000,
http://opendatacommunities.org/id/london-borough-council/sutton,London Borough of Sutton,28/09/2022,10009542,13.98, AMZNMKTPLACE AMAZON.CO,ITEMS FOR BLACK HISTORY MONTH (100%),Peoples Services,Miscellaneous Expenses,A49000,
http://opendatacommunities.org/id/london-borough-council/sutton,London Borough of Sutton,28/09/2022,10009542,14.37, AMZNMKTPLACE AMAZON.CO,ITEMS FOR BLACK HISTORY MONTH (34.04%),Peoples Services,Miscellaneous Expenses,A49000,
http://opendatacommunities.org/id/london-borough-council/sutton,London Borough of Sutton,28/09/2022,10009542,14.37, AMZNMKTPLACE AMAZON.CO,SPLIT -  TABLE CLOTH TWIN PACK - ,Peoples Services,Miscellaneous Expenses,A49000,
http://opendatacommunities.org/id/london-borough-council/sutton,London Borough of Sutton,28/09/2022,10009542,13.47, AMZNMKTPLACE AMAZON.CO,SPLIT -  DISPOSABLE PAPER COVER FOR RECTANGULAR OR SQUARE DINING TABLE,Peoples Services,Miscellaneous Expenses,A49000,
http://opendatacommunities.org/id/london-borough-council/sutton,London Borough of Sutton,28/09/2022,10009542,23.04, AMZNMKTPLACE AMAZON.CO,ITEMS FOR BLACK HISTORY MONTH (100%),Peoples Services,Miscellaneous Expenses,A49000,
http://opendatacommunities.org/id/london-borough-council/sutton,London Borough of Sutton,28/09/2022,10009542,21.20, AMZNMKTPLACE AMAZON.CO,BLACK HISTORY MONTH ITEMS (109.28%),Peoples Services,Miscellaneous Expenses,A49000,
http://opendatacommunities.org/id/london-borough-council/sutton,London Borough of Sutton,28/09/2022,10009542,-1.80, AMZNMKTPLACE AMAZON.CO,BALANCING ENTRY AMOUNT (-27.84%),Peoples Services,Miscellaneous Expenses,A49000,
http://opendatacommunities.org/id/london-borough-council/sutton,London Borough of Sutton,20/10/2022,10009542,22.50, AIRHOP GUILDFORD,ACTIVITY FOR CONTACT,Peoples Services,Client Care/Assistance,A61011,
http://opendatacommunities.org/id/london-borough-council/sutton,London Borough of Sutton,23/09/2022,10009542,"-3,000.00", C2E830200823N UKVI,REFUND FOR APPLICATION MADE IN ERROR,Peoples Services,Client Care/Assistance,A61011,
http://opendatacommunities.org/id/london-borough-council/sutton,London Borough of Sutton,05/10/2022,10009542,90.25, AMZNMKTPLACE AMAZON.CO,SPLIT - POSTURITE PENGUIN AMBIDEXTROUS WIRELESS ERGONOMIC MOUSE,Peoples Services,Equipment And Materials Purchase,A40000,
http://opendatacommunities.org/id/london-borough-council/sutton,London Borough of Sutton,08/10/2022,10009542,310.83, HOTEL IBIS,HOTEL NEEDED FOR A CLIENT,Peoples Services,Miscellaneous Expenses,A49000,
http://opendatacommunities.org/id/london-borough-council/sutton,London Borough of Sutton,07/10/2022,10009542,373.00, HOTEL IBIS,IBIS HOTEL PAYMENT FOR CLIENT,Peoples Services,C.C.A Travel & Subsistance,A61010,
http://opendatacommunities.org/id/london-borough-council/sutton,London Borough of Sutton,06/10/2022,10009542,99.00, HOTEL IBIS,IBIS HOTEL PAYMENT FOR CLIENT,Peoples Services,C.C.A Travel & Subsistance,A61010,
http://opendatacommunities.org/id/london-borough-council/sutton,London Borough of Sutton,14/10/2022,10009542,25.82, ARGOS LTD,ITEMS NEEDED FOR CLIENT,Peoples Services,Client Care/Assistance,A61011,
http://opendatacommunities.org/id/london-borough-council/sutton,London Borough of Sutton,19/10/2022,10009542,13.33, ARGOS LTD,ITEM NEEDED FOR CLIENT,Peoples Services,Client Care/Assistance,A61011,
http://opendatacommunities.org/id/london-borough-council/sutton,London Borough of Sutton,02/10/2022,10009542,104.03, STORAGEMART UK #5215,UNIT NEEDED FOR A CLIENT,Peoples Services,Miscellaneous Expenses,A49000,
http://opendatacommunities.org/id/london-borough-council/sutton,London Borough of Sutton,21/10/2022,10009542,98.75, ASDA GEORGE COM LEEDS,MICROWAVES FOR START CLIENTS,Peoples Services,Miscellaneous Expenses,A49000,
http://opendatacommunities.org/id/london-borough-council/sutton,London Borough of Sutton,18/10/2022,10009542,435.41, RACKING SOLUTIONS,SHELVES FOR EQUIPMENT STORE,Peoples Services,Miscellaneous Expenses,A49000,
http://opendatacommunities.org/id/london-borough-council/sutton,London Borough of Sutton,15/10/2022,10009542,28.57, SAINSBURYS.CO.UK,EMERGENCY FOOD SHOPPING FOR START CLIENT,Peoples Services,Miscellaneous Expenses,A49000,
http://opendatacommunities.org/id/london-borough-council/sutton,London Borough of Sutton,05/10/2022,10009542,21.58, SAINSBURYS.CO.UK,SHOPPING FOR START CLIENT'S EMERGENCY,Peoples Services,Miscellaneous Expenses,A49000,
http://opendatacommunities.org/id/london-borough-council/sutton,London Borough of Sutton,01/10/2022,10009542,418.29, CS MORRISONS GIFT CARD,FOOD VOUCHERS FOR START CLIENTS' EMERGENCIES,Peoples Services,Miscellaneous Expenses,A49000,
http://opendatacommunities.org/id/london-borough-council/sutton,London Borough of Sutton,30/09/2022,10009542,422.30, ASDA STORES LTD,FOOD VOUCHERS FOR START CLIENTS' EMERGENCIES,Peoples Services,Miscellaneous Expenses,A49000,
http://opendatacommunities.org/id/london-borough-council/sutton,London Borough of Sutton,30/09/2022,10009542,420.21, HIGHSTREETVOUCHERS,FOOD VOUCHERS FOR START CLIENTS' EMERGENCIES,Peoples Services,Miscellaneous Expenses,A49000,
http://opendatacommunities.org/id/london-borough-council/sutton,London Borough of Sutton,26/09/2022,10009542,25.50, ASDA GROCERIES ONLINE,BIN ASDA PAYMENT X 2,Peoples Services,Equipment And Materials Purchase,A40000,
http://opendatacommunities.org/id/london-borough-council/sutton,London Borough of Sutton,16/10/2022,10009542,46.58, AMZNBUSINESS 6Z1AJ4065,"SPLIT - CLINELL UNIVERSAL CLEANING AND DISINFECTANT WIPES FOR SURFACES (BCW200-1) - 6 PACKS OF 200 REGULAR WIPES - MULTI PURPOSE WIPES, KILLS 99.99% OF GERMS, (100%)",Peoples Services,Equipment And Materials Purchase,A40000,
http://opendatacommunities.org/id/london-borough-council/sutton,London Borough of Sutton,16/10/2022,10009542,4.98, AMZNMKTPLACE,"SPLIT - RONGRONG 1500 PCS GLUE DOTS FOR BALLOONS, STICKY DOTS DOUBLE SIDED REMOVABLE BALLOON STICKERS TAPE FOR CRAFTING PARTY WEDDING DIY BALLOON DECORATIONS (100%)",Peoples Services,Equipment And Materials Purchase,A40000,
http://opendatacommunities.org/id/london-borough-council/sutton,London Borough of Sutton,16/10/2022,10009542,9.90, AMZNBUSINESS Z470K2WF5,SPLIT - SAFETY FIRST AID GROUP ACCIDENT BOOK A4 (100%),Peoples Services,Equipment And Materials Purchase,A40000,
http://opendatacommunities.org/id/london-borough-council/sutton,London Borough of Sutton,16/10/2022,10009542,9.98, AMZNMKTPLACE,"SPLIT - LANPARD 24PCS TABLE CORNER PROTECTORS FOR KIDS, BABY SAFETY EDGE & CORNER GUARDS ODORLESS NON TOXIC WITH STRONG ADHESION, BABY PROOFING CORNER PROTECT (100%)",Peoples Services,Equipment And Materials Purchase,A40000,
http://opendatacommunities.org/id/london-borough-council/sutton,London Borough of Sutton,16/10/2022,10009542,9.00, AMZNBUSINESS R57PO5ZB5,SPLIT - HSE HEALTH AND SAFETY LAW POSTER A3 FWC30/A3 (100%),Peoples Services,Equipment And Materials Purchase,A40000,
http://opendatacommunities.org/id/london-borough-council/sutton,London Borough of Sutton,27/09/2022,10009542,134.00, THOMSON REUTERS UK LTD,JCT ON DEMAND IC 2016PRODUCT ID: 30808119,Environment Housing and Neighbourhoods,Other Capital Expenditure,C20002,
http://opendatacommunities.org/id/london-borough-council/sutton,London Borough of Sutton,26/09/2022,10009542,16.24, WM MORRISONS STORE,OFSTED INSPECTION REFRESHMENTS,Health and Wellbeing,Miscellaneous Expenses,A49000,
http://opendatacommunities.org/id/london-borough-council/sutton,London Borough of Sutton,17/10/2022,10009542,11.02, WM MORRISONS STORE,OFSTED PROVISIONS,Health and Wellbeing,Miscellaneous Expenses,A49000,
http://opendatacommunities.org/id/london-borough-council/sutton,London Borough of Sutton,01/10/2022,10009542,48.22, GSUITE_SUTTONCOLLEGE.A,GOOGLE CLOUD EMEA LIMITED 4563530747,Health and Wellbeing,Subscriptions,A47010,
http://opendatacommunities.org/id/london-borough-council/sutton,London Borough of Sutton,07/10/2022,10009542,47.99, ADOBE STOCK,ADOBE 071022 47.99,Health and Wellbeing,Publicity,A44266,
http://opendatacommunities.org/id/london-borough-council/sutton,London Borough of Sutton,05/10/2022,10009542,411.51, WWW.INSTANTPRINT.C,INSTANTPRINT 051022 RERUN COURSE GUIDES 411.51,Health and Wellbeing,Publicity,A44266,
http://opendatacommunities.org/id/london-borough-council/sutton,London Borough of Sutton,30/09/2022,10009542,23.80, FACEBK  FUQBLFP6A2,FACEBOOK 300922 23.80,Health and Wellbeing,Publicity,A44266,
http://opendatacommunities.org/id/london-borough-council/sutton,London Borough of Sutton,30/09/2022,10009542,176.70, MAILCHIMP,MAILCHIMP 300922 212.04,Health and Wellbeing,Publicity,A44266,
http://opendatacommunities.org/id/london-borough-council/sutton,London Borough of Sutton,28/09/2022,10009542,194.30, AMZNMKTPLACE,POLICE PREFERRED PERSONAL ATTACK ALARM,Health and Wellbeing,Health & Safety Equipment,A40080,
http://opendatacommunities.org/id/london-borough-council/sutton,London Borough of Sutton,28/09/2022,10009542,83.27, AMZNMKTPLACE,POLICE PREFERRED PERSONAL ATTACK ALARM,Health and Wellbeing,Health & Safety Equipment,A40080,
http://opendatacommunities.org/id/london-borough-council/sutton,London Borough of Sutton,13/10/2022,10009542,273.59, BOOKER LIMITED CROYDON,VENDING MACHINE CONTENTS,Health and Wellbeing,Catering,A41000,
http://opendatacommunities.org/id/london-borough-council/sutton,London Borough of Sutton,06/10/2022,10009542,98.20, BPP LEARNING MEDIA LTD,TAX AND ACCOUNTING BOOKS,Health and Wellbeing,Books,A43050,
http://opendatacommunities.org/id/london-borough-council/sutton,London Borough of Sutton,13/10/2022,10009542,5.99, EBAY O 03-09214-49701,CUTTING EDGE INTERMEDIATE TEACHERS' BOOK,Health and Wellbeing,Books,A43050,
http://opendatacommunities.org/id/london-borough-council/sutton,London Borough of Sutton,13/10/2022,10009542,5.71, EBAY O 03-09214-49704,CUTTING EDGE INTERMEDIATE WORKBOOK,Health and Wellbeing,Books,A43050,
http://opendatacommunities.org/id/london-borough-council/sutton,London Borough of Sutton,13/10/2022,10009542,23.40, EBAY O 03-09214-49705,CUTTING EDGE INTERMEDIATE STUDENTS PACK,Health and Wellbeing,Books,A43050,
http://opendatacommunities.org/id/london-borough-council/sutton,London Borough of Sutton,27/09/2022,10009542,410.80, WWW.FLORISTSUPPLIESUK.,FLORISTRY KIT PURCHASE,Health and Wellbeing,Equipment And Materials Purchase,A40000,
http://opendatacommunities.org/id/london-borough-council/sutton,London Borough of Sutton,06/10/2022,10009542,5.99, EB  EXCLUDED TO INCLUD,EVENTBRITE TICKET,Peoples Services,LAC - Education,A44280,
http://opendatacommunities.org/id/london-borough-council/sutton,London Borough of Sutton,24/10/2022,10009542,204.17, AMZNMKTPLACE AMAZON.CO,"SPLIT - DELL LATITUDE E5250 12.5-INCH LAPTOP (INTEL CORE I5 2.3 GHZ, 8 GB RAM, 256 GB HDD, WINDOWS 8.1) (100%)",Peoples Services,LAC - Education,A44280,
http://opendatacommunities.org/id/london-borough-council/sutton,London Borough of Sutton,20/10/2022,10009542,9.55, AMZNBUSINESS FI9Q65I25,"SPLIT - THE #2022 WOULD YOU RATHER BOOK FOR KIDS AGE 6-12: HILARIOUS SCENARIOS, RIDICULOUS QUESTIONS FOR PARENTS, TEENS AND CHILDREN - (PRESENT FOR GIRLS AND (100%)",Peoples Services,LAC - Education,A44280,
http://opendatacommunities.org/id/london-borough-council/sutton,London Borough of Sutton,20/10/2022,10009542,10.61, AMZNBUSINESS 7X3WL96Q5,"SPLIT - GIRLS ARE AMAZING: A COLLECTION OF SHORT STORIES FOR GIRLS ABOUT COURAGE, STRENGTH AND LOVE - PRESENT FOR GIRLS (100%)",Peoples Services,LAC - Education,A44280,
http://opendatacommunities.org/id/london-borough-council/sutton,London Borough of Sutton,19/10/2022,10009542,200.00, AMZNMKTPLACE AMAZON.CO,"SPLIT - TABLET 10.1 INCH OUKITEL RT1, 10000MAH LARGE BATTERY, OCTA-CORE 4GB RAM 64GB ROM, 1920X1200 FHD+ RUGGED TABLET, 16+16MP CAMERA, DUAL 4G SIM+5G WIFI, A (100%)",Peoples Services,LAC - Education,A44280,
http://opendatacommunities.org/id/london-borough-council/sutton,London Borough of Sutton,19/10/2022,10009542,24.69, AMZNBUSINESS ZJ1629TF5,SPLIT - EDEXCEL AS ENGLISH LANGUAGE STUDENT BOOK (55.25%),Peoples Services,LAC - Education,A44280,
http://opendatacommunities.org/id/london-borough-council/sutton,London Borough of Sutton,19/10/2022,10009542,20.00, AMZNBUSINESS ZJ1629TF5,SPLIT - EDEXCEL A2 ENGLISH LANGUAGE STUDENT BOOK (44.75%),Peoples Services,LAC - Education,A44280,
http://opendatacommunities.org/id/london-borough-council/sutton,London Borough of Sutton,19/10/2022,10009542,10.99, AMZNBUSINESS 1T3RA6GY5,"SPLIT - PEARSON REVISE EDEXCEL AS/A LEVEL BIOLOGY REVISION GUIDE: FOR HOME LEARNING, 2022 AND 2023 ASSESSMENTS AND EXAMS (REVISE EDEXCEL GCE SCIENCE 2015) (100%)",Peoples Services,LAC - Education,A44280,
http://opendatacommunities.org/id/london-borough-council/sutton,London Borough of Sutton,19/10/2022,10009542,16.99, AMZNBUSINESS 0S17433H5,SPLIT - AS AND A-LEVEL PSYCHOLOGY: AQA COMPLETE REVISION & PRACTICE WITH ONLINE EDITION: FOR THE 2023 AND 2024 EXAMS (CGP A-LEVEL PSYCHOLOGY) (100%),Peoples Services,LAC - Education,A44280,
http://opendatacommunities.org/id/london-borough-council/sutton,London Borough of Sutton,18/10/2022,10009542,5.99, EB  EXCLUDED TO INCLUD,EVENTBRITE TICKET,Peoples Services,LAC - Education,A44280,
http://opendatacommunities.org/id/london-borough-council/sutton,London Borough of Sutton,14/10/2022,10009542,5.99, EB  EXCLUDED TO INCLUD,EVENTBRITE TICKET,Peoples Services,LAC - Education,A44280,
http://opendatacommunities.org/id/london-borough-council/sutton,London Borough of Sutton,12/10/2022,10009542,7.49, AMZNMKTPLACE AMAZON.CO,"SPLIT - KUMBER TIE DYE KIT KIDS - 5 COLOURS WITH EXTRA DYE POWDER, RUBBER BANDS, GLOVES AND FUNNEL - ART AND CRAFT SET FOR DYEING CLOTHES, CREATIVE GAMES & AC (100%)",Peoples Services,LAC - Education,A44280,
http://opendatacommunities.org/id/london-borough-council/sutton,London Borough of Sutton,12/10/2022,10009542,8.99, AMZNBUSINESS YA59U1RN5,"SPLIT - MOTHERING HEIGHTS (DOG MAN 10): THE LAUGH-OUT-LOUD, BLOCKBUSTING FULL-COLOUR GRAPHIC NOVEL FROM INTERNATIONAL BESTSELLING AUTHOR DAV PILKEY: VOLUME 10 (100%)",Peoples Services,LAC - Education,A44280,
http://opendatacommunities.org/id/london-borough-council/sutton,London Borough of Sutton,11/10/2022,10009542,5.99, EB  EXCLUDED TO INCLUD,EVENTBRITE TICKET,Peoples Services,LAC - Education,A44280,
http://opendatacommunities.org/id/london-borough-council/sutton,London Borough of Sutton,09/10/2022,10009542,6.79, AMZNMKTPLACE,"SPLIT - THE DREAM TEAM: JAZ SANTOS VS. THE WORLD (THE DREAM TEAM, 1) (100%)",Peoples Services,LAC - Education,A44280,
http://opendatacommunities.org/id/london-borough-council/sutton,London Borough of Sutton,07/10/2022,10009542,5.99, EB  EXCLUDED TO INCLUD,EVENTBRITE TICKET,Peoples Services,LAC - Education,A44280,
http://opendatacommunities.org/id/london-borough-council/sutton,London Borough of Sutton,07/10/2022,10009542,9.95, AMZNBUSINESS DB0YL0RA5,"SPLIT - TEACH YOUR DRAGON EMPATHY: HELP YOUR DRAGON UNDERSTAND EMPATHY. A CUTE CHILDREN STORY TO TEACH KIDS EMPATHY, COMPASSION AND KINDNESS.: 24 (MY DRAGON B (100%)",Peoples Services,LAC - Education,A44280,
http://opendatacommunities.org/id/london-borough-council/sutton,London Borough of Sutton,07/10/2022,10009542,7.72, AMZNBUSINESS G867E6OD5,SPLIT - GRATITUDE IS MY SUPERPOWER: A CHILDREN'S BOOK ABOUT GIVING THANKS AND PRACTICING POSITIVITY (100%),Peoples Services,LAC - Education,A44280,
http://opendatacommunities.org/id/london-borough-council/sutton,London Borough of Sutton,07/10/2022,10009542,4.88, AMZNMKTPLACE AMAZON.CO,SPLIT - A FIRST BOOK OF FAIRY TALES (100%),Peoples Services,LAC - Education,A44280,
http://opendatacommunities.org/id/london-borough-council/sutton,London Borough of Sutton,06/10/2022,10009542,8.86, AMZNBUSINESS PJ8M15VL5,"SPLIT - YOU ARE BEAUTIFUL: INSPIRATIONAL STORIES FOR GIRLS ABOUT HAPPINESS, CONFIDENCE AND SELF-DETERMINATION | PRESENT FOR GIRLS (100%)",Peoples Services,LAC - Education,A44280,
http://opendatacommunities.org/id/london-borough-council/sutton,London Borough of Sutton,06/10/2022,10009542,5.82, AMZNMKTPLACE,SPLIT - 2PCS PEN SPINNER PEN SPINNING GAMING PENS FLYING PEN WITH WEIGHTED STEEL BALL ENDS GAME PEN SPINNING MOD ROTATING PEN FLYING FIDGET SPINNERS FOR KIDS (100%),Peoples Services,LAC - Education,A44280,
http://opendatacommunities.org/id/london-borough-council/sutton,London Borough of Sutton,06/10/2022,10009542,6.40, AMZNMKTPLACE,"SPLIT - MY STORY: A CHILD CALLED IT, THE LOST BOY, A MAN NAMED DAVE (100%)",Peoples Services,LAC - Education,A44280,
http://opendatacommunities.org/id/london-borough-council/sutton,London Borough of Sutton,06/10/2022,10009542,9.68, AMZNBUSINESS MC4A29UQ5,"SPLIT - GIRLS ARE AMAZING: A COLLECTION OF SHORT STORIES FOR GIRLS ABOUT COURAGE, STRENGTH AND LOVE - PRESENT FOR GIRLS (100%)",Peoples Services,LAC - Education,A44280,
http://opendatacommunities.org/id/london-borough-council/sutton,London Borough of Sutton,06/10/2022,10009542,5.82, AMZNMKTPLACE,"SPLIT - SPINNING PEN MOD WITH STORAGE CASE, WEIGHTED GAMING FINGER PEN ROTATING PENCILS, NON-SLIP COATED TWIRLING PENS, NO PEN REFILL FOR STUDENT OFFICE TO RE (100%)",Peoples Services,LAC - Education,A44280,
http://opendatacommunities.org/id/london-borough-council/sutton,London Borough of Sutton,06/10/2022,10009542,10.00, AMAZON.CO.UK TR0WJ3YN5,SPLIT - AMAZON LOGO SQUID - AMAZON.CO.UK EGIFT VOUCHER (100%),Peoples Services,LAC - Education,A44280,
http://opendatacommunities.org/id/london-borough-council/sutton,London Borough of Sutton,06/10/2022,10009542,5.99, EB  EXCLUDED TO INCLUD,EVENTBRITE TICKET,Peoples Services,LAC - Education,A44280,
http://opendatacommunities.org/id/london-borough-council/sutton,London Borough of Sutton,06/10/2022,10009542,5.99, EB  EXCLUDED TO INCLUD,EVENTBRITE TICKET,Peoples Services,LAC - Education,A44280,
http://opendatacommunities.org/id/london-borough-council/sutton,London Borough of Sutton,06/10/2022,10009542,5.99, EB  EXCLUDED TO INCLUD,EVENTBRITE TICKET,Peoples Services,LAC - Education,A44280,
http://opendatacommunities.org/id/london-borough-council/sutton,London Borough of Sutton,06/10/2022,10009542,5.99, EB  EXCLUDED TO INCLUD,EVENTBRITE TICKET,Peoples Services,LAC - Education,A44280,
http://opendatacommunities.org/id/london-borough-council/sutton,London Borough of Sutton,06/10/2022,10009542,5.99, EB  EXCLUDED TO INCLUD,EVENTBRITE TICKET,Peoples Services,LAC - Education,A44280,
http://opendatacommunities.org/id/london-borough-council/sutton,London Borough of Sutton,06/10/2022,10009542,5.99, EB  EXCLUDED TO INCLUD,EVENTBRITE TICKET,Peoples Services,LAC - Education,A44280,
http://opendatacommunities.org/id/london-borough-council/sutton,London Borough of Sutton,06/10/2022,10009542,5.99, EB  EXCLUDED TO INCLUD,EVENTBRITE TICKET,Peoples Services,LAC - Education,A44280,
http://opendatacommunities.org/id/london-borough-council/sutton,London Borough of Sutton,06/10/2022,10009542,5.99, EB  EXCLUDED TO INCLUD,EVENTBRITE TICKET,Peoples Services,LAC - Education,A44280,
http://opendatacommunities.org/id/london-borough-council/sutton,London Borough of Sutton,06/10/2022,10009542,5.99, EB  EXCLUDED TO INCLUD,EVENTBRITE TICKET,Peoples Services,LAC - Education,A44280,
http://opendatacommunities.org/id/london-borough-council/sutton,London Borough of Sutton,06/10/2022,10009542,5.99, EB  EXCLUDED TO INCLUD,EVENTBRITE TICKET,Peoples Services,LAC - Education,A44280,
http://opendatacommunities.org/id/london-borough-council/sutton,London Borough of Sutton,06/10/2022,10009542,5.99, EB  EXCLUDED TO INCLUD,EVENTBRITE TICKET,Peoples Services,LAC - Education,A44280,
http://opendatacommunities.org/id/london-borough-council/sutton,London Borough of Sutton,06/10/2022,10009542,5.99, EB  EXCLUDED TO INCLUD,EVENTBRITE TICKET,Peoples Services,LAC - Education,A44280,
http://opendatacommunities.org/id/london-borough-council/sutton,London Borough of Sutton,06/10/2022,10009542,5.99, EB  EXCLUDED TO INCLUD,EVENTBRITE TICKET,Peoples Services,LAC - Education,A44280,
http://opendatacommunities.org/id/london-borough-council/sutton,London Borough of Sutton,06/10/2022,10009542,5.99, EB  EXCLUDED TO INCLUD,EVENTBRITE TICKET,Peoples Services,LAC - Education,A44280,
http://opendatacommunities.org/id/london-borough-council/sutton,London Borough of Sutton,06/10/2022,10009542,5.09, AMZNBUSINESS PI99X22B5,SPLIT - ONE LOVE (BOB MARLEY BY CHRONICLE BOOKS) (100%),Peoples Services,LAC - Education,A44280,
http://opendatacommunities.org/id/london-borough-council/sutton,London Borough of Sutton,05/10/2022,10009542,5.99, EB  EXCLUDED TO INCLUD,EVENTBRITE TICKET,Peoples Services,LAC - Education,A44280,
http://opendatacommunities.org/id/london-borough-council/sutton,London Borough of Sutton,05/10/2022,10009542,5.99, EB  EXCLUDED TO INCLUD,EVENTBRITE TICKET,Peoples Services,LAC - Education,A44280,
http://opendatacommunities.org/id/london-borough-council/sutton,London Borough of Sutton,05/10/2022,10009542,5.99, EB  EXCLUDED TO INCLUD,EVENTBRITE TICKET,Peoples Services,LAC - Education,A44280,
http://opendatacommunities.org/id/london-borough-council/sutton,London Borough of Sutton,05/10/2022,10009542,5.99, EB  EXCLUDED TO INCLUD,EVENTBRITE TICKET,Peoples Services,LAC - Education,A44280,
http://opendatacommunities.org/id/london-borough-council/sutton,London Borough of Sutton,05/10/2022,10009542,5.99, EB  EXCLUDED TO INCLUD,EVENTBRITE TICKET,Peoples Services,LAC - Education,A44280,
http://opendatacommunities.org/id/london-borough-council/sutton,London Borough of Sutton,05/10/2022,10009542,108.32, AMAZON.CO.UK S20U75365,"SPLIT - HP STREAM 11 INCH LAPTOP PC 11-AK0028SA, INTEL CELERON 1.1GHZ, 4GB RAM, 64GB SSD, HD 1366 X 768, DIAMOND WHITE, MICROSOFT 365 PERSONAL 12 MONTHS INCLU (100%)",Peoples Services,LAC - Education,A44280,
http://opendatacommunities.org/id/london-borough-council/sutton,London Borough of Sutton,05/10/2022,10009542,108.32, AMAZON.CO.UK KS13Y8GA5,"SPLIT - HP STREAM 11 INCH LAPTOP PC 11-AK0028SA, INTEL CELERON 1.1GHZ, 4GB RAM, 64GB SSD, HD 1366 X 768, DIAMOND WHITE, MICROSOFT 365 PERSONAL 12 MONTHS INCLU (100%)",Peoples Services,LAC - Education,A44280,
http://opendatacommunities.org/id/london-borough-council/sutton,London Borough of Sutton,05/10/2022,10009542,5.99, EB  EXCLUDED TO INCLUD,EVENTBRITE TICKET,Peoples Services,LAC - Education,A44280,
http://opendatacommunities.org/id/london-borough-council/sutton,London Borough of Sutton,04/10/2022,10009542,5.95, ROYAL MAIL GROUP LTD,POSTAGE COSTS FOR REDACTED - PERSONAL DATA,Peoples Services,LAC - Education,A44280,
http://opendatacommunities.org/id/london-borough-council/sutton,London Borough of Sutton,02/10/2022,10009542,212.49, AMZNMKTPLACE,"SPLIT - ACER ASPIRE 1 A114-33 14 INCH LAPTOP (INTEL CELERON N4500, 4GB RAM, 64GB EMMC, FULL HD IPS DISPLAY, WINDOWS 10 IN S MODE, OFFICE 365 PERSONAL, BLUE) (100%)",Peoples Services,LAC - Education,A44280,
http://opendatacommunities.org/id/london-borough-council/sutton,London Borough of Sutton,28/09/2022,10009542,221.62, AMZNMKTPLACE AMAZON.CO,"SPLIT - LENOVO IDEAPAD DUET CHROMEBOOK 10.1 INCH FHD 2-IN-1 LAPTOP - (MEDIATEK P60T, 4 GB RAM, 64 GB EMCP, CHROME OS) (100%)",Peoples Services,LAC - Education,A44280,
http://opendatacommunities.org/id/london-borough-council/sutton,London Borough of Sutton,28/09/2022,10009542,10.00, AMAZON.CO.UK GW8L46GJ5,SPLIT - AMAZON FOR ALL OCCASIONS - AMAZON.CO.UK EGIFT VOUCHER (100%),Peoples Services,LAC - Education,A44280,
http://opendatacommunities.org/id/london-borough-council/sutton,London Borough of Sutton,26/09/2022,10009542,215.08, AMZNMKTPLACE,"SPLIT - LENOVO IDEAPAD DUET CHROMEBOOK 10.1 INCH FHD 2-IN-1 LAPTOP - (MEDIATEK P60T, 4 GB RAM, 64 GB EMCP, CHROME OS) (100%)",Peoples Services,LAC - Education,A44280,
http://opendatacommunities.org/id/london-borough-council/sutton,London Borough of Sutton,26/09/2022,10009542,-221.62, AMZ TJDL,"SPLIT - LENOVO IDEAPAD DUET CHROMEBOOK 10.1 INCH FHD 2-IN-1 LAPTOP - (MEDIATEK P60T, 4 GB RAM, 64 GB EMCP, CHROME OS) (100%)",Peoples Services,LAC - Education,A44280,
